[Event "January 9 Early 2024"]
[Site "https://www.chess.com"]
[Date "2024.01.11"]
[Round "2"]
[White "Vlassov, Nikolai"]
[Black "Aravindh, Chithambaram VR."]
[Result "1-0"]
[Board "258"]
[TimeControl "180+1"]
[WhiteFideId "4103360"]
[BlackFideId "5072786"]
[WhiteElo "2631"]
[BlackElo "2920"]
[WhiteTeam "FID"]
[BlackTeam "IND"]
[WhiteClock "0:00:16"]
[BlackClock "0:00:01"]

1. e4 {[%clk 0:03:00]}  Nf6 {[%clk 0:02:53]} 2. e5 {[%clk 0:03:00]}  Nd5 {[%clk 0:02:54]} 3. d4 {[%clk 0:03:00]}  d6 {[%clk 0:02:54]} 4. c4 {[%clk 0:03:00]}  Nb6 {[%clk 0:02:54]} 5. f4 {[%clk 0:03:01]}  g6 {[%clk 0:02:54]} 6. Nf3 {[%clk 0:02:59]}  Bg7 {[%clk 0:02:54]} 7. Nc3 {[%clk 0:02:59]}  O-O {[%clk 0:02:54]} 8. Be2 {[%clk 0:03:00]}  dxe5 {[%clk 0:02:33]} 9. fxe5 {[%clk 0:02:59]}  Nc6 {[%clk 0:02:33]} 10. Be3 {[%clk 0:02:59]}  Bg4 {[%clk 0:02:29]} 11. O-O {[%clk 0:02:44]}  f6 {[%clk 0:02:21]} 12. e6 {[%clk 0:02:26]}  f5 {[%clk 0:02:20]} 13. d5 {[%clk 0:02:24]}  Bxf3 {[%clk 0:02:18]} 14. gxf3 {[%clk 0:02:15]}  Ne5 {[%clk 0:02:06]} 15. Bxb6 {[%clk 0:02:08]}  cxb6 {[%clk 0:01:56]} 16. f4 {[%clk 0:02:08]}  Ng4 {[%clk 0:01:55]} 17. Bxg4 {[%clk 0:02:08]}  fxg4 {[%clk 0:01:56]} 18. Qxg4 {[%clk 0:02:09]}  Bxc3 {[%clk 0:01:48]} 19. bxc3 {[%clk 0:02:08]}  Rf5 {[%clk 0:01:48]} 20. Rae1 {[%clk 0:02:01]}  Qd6 {[%clk 0:01:49]} 21. Re5 {[%clk 0:01:15]}  Raf8 {[%clk 0:01:27]} 22. Rxf5 {[%clk 0:01:12]}  Rxf5 {[%clk 0:01:28]} 23. Kg2 {[%clk 0:01:05]}  b5 {[%clk 0:01:22]} 24. Qe2 {[%clk 0:00:53]}  bxc4 {[%clk 0:01:20]} 25. Qxc4 {[%clk 0:00:51]}  Qxd5+ {[%clk 0:00:53]} 26. Qxd5 {[%clk 0:00:50]}  Rxd5 {[%clk 0:00:54]} 27. Kf3 {[%clk 0:00:51]}  Kg7 {[%clk 0:00:46]} 28. Ke4 {[%clk 0:00:48]}  Rf5 {[%clk 0:00:34]} 29. Rd1 {[%clk 0:00:46]}  Kf6 {[%clk 0:00:34]} 30. Rd7 {[%clk 0:00:46]}  Rb5 {[%clk 0:00:33]} 31. c4 {[%clk 0:00:42]}  Rb2 {[%clk 0:00:32]} 32. Kd5 {[%clk 0:00:33]}  a5 {[%clk 0:00:19]} 33. a4 {[%clk 0:00:29]}  Rb4 {[%clk 0:00:13]} 34. h4 {[%clk 0:00:25]}  Rb1 {[%clk 0:00:08]} 35. Rc7 {[%clk 0:00:20]}  h6 {[%clk 0:00:06]} 36. Rd7 {[%clk 0:00:20]}  Rb2 {[%clk 0:00:05]} 37. Rc7 {[%clk 0:00:20]}  Rb3 {[%clk 0:00:04]} 38. Rd7 {[%clk 0:00:19]}  b6 {[%clk 0:00:04]} 39. Rb7 {[%clk 0:00:18]}  Rb4 {[%clk 0:00:03]} 40. Rb8 {[%clk 0:00:14]}  Rb1 {[%clk 0:00:02]} 41. Rf8+ {[%clk 0:00:14]}  Kg7 {[%clk 0:00:02]} 42. Rf7+ {[%clk 0:00:15]}  Kg8 {[%clk 0:00:02]} 43. Rxe7 {[%clk 0:00:15]}  Kf8 {[%clk 0:00:02]} 44. Rf7+ {[%clk 0:00:15]}  Ke8 {[%clk 0:00:03]} 45. Rh7 {[%clk 0:00:15]}  Rd1+ {[%clk 0:00:02]} 46. Ke5 {[%clk 0:00:15]}  Rf1 {[%clk 0:00:01]} 47. Rxh6 {[%clk 0:00:15]}  Ke7 {[%clk 0:00:02]} 48. Rh7+ {[%clk 0:00:15]}  Ke8 {[%clk 0:00:02]} 49. Rg7 {[%clk 0:00:16]}  Rf2 {[%clk 0:00:01]} 50. Rxg6 {[%clk 0:00:16]} 1-0

[Event "January 9 Early 2024"]
[Site "https://www.chess.com"]
[Date "2024.01.11"]
[Round "2"]
[White "Cori T., Deysi"]
[Black "Ter-Sahakyan, Samvel"]
[Result "0-1"]
[Board "259"]
[TimeControl "180+1"]
[WhiteFideId "3801934"]
[BlackFideId "13302531"]
[WhiteElo "2597"]
[BlackElo "2909"]
[WhiteTeam "PER"]
[BlackTeam "ARM"]
[WhiteClock "0:00:01"]
[BlackClock "0:00:14"]

1. Nf3 {[%clk 0:03:00]}  d5 {[%clk 0:02:59]} 2. d4 {[%clk 0:03:00]}  c5 {[%clk 0:02:57]} 3. e3 {[%clk 0:02:59]}  Nf6 {[%clk 0:02:57]} 4. Nbd2 {[%clk 0:02:56]}  cxd4 {[%clk 0:02:55]} 5. exd4 {[%clk 0:02:56]}  Qc7 {[%clk 0:02:56]} 6. c3 {[%clk 0:02:56]}  Bg4 {[%clk 0:02:48]} 7. h3 {[%clk 0:02:55]}  Bh5 {[%clk 0:02:48]} 8. Qa4+ {[%clk 0:02:55]}  Nc6 {[%clk 0:02:44]} 9. Ne5 {[%clk 0:02:54]}  Nd7 {[%clk 0:02:36]} 10. Ndf3 {[%clk 0:02:38]}  Bxf3 {[%clk 0:02:21]} 11. Nxf3 {[%clk 0:02:39]}  e6 {[%clk 0:02:22]} 12. Bd3 {[%clk 0:02:32]}  Bd6 {[%clk 0:02:22]} 13. O-O {[%clk 0:02:28]}  Bf4 {[%clk 0:02:15]} 14. Qd1 {[%clk 0:02:23]}  O-O {[%clk 0:02:02]} 15. Re1 {[%clk 0:02:22]}  Rae8 {[%clk 0:01:44]} 16. Bc2 {[%clk 0:02:08]}  Bxc1 {[%clk 0:01:43]} 17. Rxc1 {[%clk 0:02:07]}  g6 {[%clk 0:01:36]} 18. Qd2 {[%clk 0:02:05]}  Kg7 {[%clk 0:01:33]} 19. h4 {[%clk 0:01:58]}  Nf6 {[%clk 0:01:23]} 20. Ne5 {[%clk 0:01:58]}  h5 {[%clk 0:01:11]} 21. Qg5 {[%clk 0:01:55]}  Nxe5 {[%clk 0:01:10]} 22. dxe5 {[%clk 0:01:54]}  Ng4 {[%clk 0:01:01]} 23. Bd1 {[%clk 0:01:51]}  Qe7 {[%clk 0:00:47]} 24. Bxg4 {[%clk 0:01:34]}  Qxg5 {[%clk 0:00:47]} 25. hxg5 {[%clk 0:01:35]}  hxg4 {[%clk 0:00:48]} 26. Rcd1 {[%clk 0:01:00]}  Rc8 {[%clk 0:00:45]} 27. Rd4 {[%clk 0:00:56]}  Rc4 {[%clk 0:00:45]} 28. Rxc4 {[%clk 0:00:52]}  dxc4 {[%clk 0:00:46]} 29. Re3 {[%clk 0:00:52]}  Rc8 {[%clk 0:00:46]} 30. Re4 {[%clk 0:00:52]}  Rc5 {[%clk 0:00:45]} 31. a4 {[%clk 0:00:45]}  g3 {[%clk 0:00:33]} 32. fxg3 {[%clk 0:00:20]}  b5 {[%clk 0:00:33]} 33. axb5 {[%clk 0:00:18]}  Rxb5 {[%clk 0:00:33]} 34. Rxc4 {[%clk 0:00:18]}  Rxb2 {[%clk 0:00:33]} 35. Ra4 {[%clk 0:00:17]}  Re2 {[%clk 0:00:26]} 36. Rxa7 {[%clk 0:00:17]}  Rxe5 {[%clk 0:00:26]} 37. c4 {[%clk 0:00:14]}  Rc5 {[%clk 0:00:25]} 38. Ra4 {[%clk 0:00:13]}  Rxg5 {[%clk 0:00:26]} 39. Kf2 {[%clk 0:00:12]}  Kf6 {[%clk 0:00:26]} 40. Ke3 {[%clk 0:00:13]}  Rxg3+ {[%clk 0:00:25]} 41. Kf2 {[%clk 0:00:12]}  Rc3 {[%clk 0:00:25]} 42. Ke2 {[%clk 0:00:11]}  Ke5 {[%clk 0:00:20]} 43. Ra5+ {[%clk 0:00:08]}  Kd6 {[%clk 0:00:17]} 44. Ra7 {[%clk 0:00:05]}  f5 {[%clk 0:00:17]} 45. Rg7 {[%clk 0:00:05]}  Rg3 {[%clk 0:00:17]} 46. Kf2 {[%clk 0:00:06]}  Rg4 {[%clk 0:00:17]} 47. Rg8 {[%clk 0:00:05]}  e5 {[%clk 0:00:15]} 48. Rd8+ {[%clk 0:00:04]}  Ke7 {[%clk 0:00:15]} 49. Rd5 {[%clk 0:00:03]}  Ke6 {[%clk 0:00:14]} 50. Rd8 {[%clk 0:00:02]}  Rxc4 {[%clk 0:00:14]} 51. Rg8 {[%clk 0:00:01]}  Kf6 {[%clk 0:00:14]} 0-1

[Event "January 9 Early 2024"]
[Site "https://www.chess.com"]
[Date "2024.01.11"]
[Round "2"]
[White "Zhao, Jun"]
[Black "Gavrilov, Maxim"]
[Result "1-0"]
[Board "261"]
[TimeControl "180+1"]
[WhiteFideId "8602522"]
[BlackFideId "24271454"]
[WhiteElo "2772"]
[BlackElo "2442"]
[WhiteTeam "CHN"]
[BlackTeam "RUS"]
[WhiteClock "0:00:04"]
[BlackClock "0:00:30"]

1. e4 {[%clk 0:03:00]}  c5 {[%clk 0:02:59]} 2. Nf3 {[%clk 0:03:00]}  d6 {[%clk 0:02:59]} 3. d4 {[%clk 0:03:00]}  cxd4 {[%clk 0:03:00]} 4. Nxd4 {[%clk 0:03:00]}  Nf6 {[%clk 0:03:00]} 5. Nc3 {[%clk 0:03:00]}  a6 {[%clk 0:03:01]} 6. Bg5 {[%clk 0:03:00]}  e6 {[%clk 0:03:00]} 7. f4 {[%clk 0:03:00]}  Qb6 {[%clk 0:02:59]} 8. Qd2 {[%clk 0:02:59]}  Qxb2 {[%clk 0:02:59]} 9. Rb1 {[%clk 0:02:59]}  Qa3 {[%clk 0:02:59]} 10. f5 {[%clk 0:02:58]}  Nc6 {[%clk 0:02:55]} 11. Bxf6 {[%clk 0:02:57]}  gxf6 {[%clk 0:02:52]} 12. Nxc6 {[%clk 0:02:50]}  bxc6 {[%clk 0:02:53]} 13. fxe6 {[%clk 0:02:45]}  Bxe6 {[%clk 0:02:44]} 14. Bd3 {[%clk 0:02:36]}  Bg7 {[%clk 0:02:41]} 15. O-O {[%clk 0:02:35]}  f5 {[%clk 0:02:35]} 16. exf5 {[%clk 0:02:26]}  Bxc3 {[%clk 0:02:30]} 17. Qe2 {[%clk 0:02:23]}  Qc5+ {[%clk 0:02:19]} 18. Kh1 {[%clk 0:02:22]}  Qe5 {[%clk 0:02:17]} 19. fxe6 {[%clk 0:02:21]}  Qxe6 {[%clk 0:02:05]} 20. Qf3 {[%clk 0:02:10]}  d5 {[%clk 0:01:49]} 21. Rb7 {[%clk 0:01:37]}  O-O {[%clk 0:01:43]} 22. Bxh7+ {[%clk 0:01:01]}  Kxh7 {[%clk 0:01:44]} 23. Qxc3 {[%clk 0:01:01]}  Rab8 {[%clk 0:01:37]} 24. Qd3+ {[%clk 0:00:55]}  Qg6 {[%clk 0:01:26]} 25. Rbxf7+ {[%clk 0:00:48]}  Rxf7 {[%clk 0:01:19]} 26. Rxf7+ {[%clk 0:00:46]}  Kh8 {[%clk 0:01:07]} 27. Qc3+ {[%clk 0:00:35]}  Kg8 {[%clk 0:01:04]} 28. Rf1 {[%clk 0:00:35]}  Rf8 {[%clk 0:01:00]} 29. Rxf8+ {[%clk 0:00:28]}  Kxf8 {[%clk 0:01:01]} 30. Kg1 {[%clk 0:00:23]}  Ke7 {[%clk 0:00:59]} 31. h3 {[%clk 0:00:18]}  Kd6 {[%clk 0:00:58]} 32. Qd3 {[%clk 0:00:16]}  Qf6 {[%clk 0:00:52]} 33. a3 {[%clk 0:00:16]}  a5 {[%clk 0:00:50]} 34. g4 {[%clk 0:00:15]}  Qf4 {[%clk 0:00:47]} 35. Kg2 {[%clk 0:00:15]}  d4 {[%clk 0:00:44]} 36. Qg3 {[%clk 0:00:15]}  Ke5 {[%clk 0:00:43]} 37. g5 {[%clk 0:00:13]}  Qxg3+ {[%clk 0:00:30]} 38. Kxg3 {[%clk 0:00:14]}  Kf5 {[%clk 0:00:31]} 39. h4 {[%clk 0:00:13]}  c5 {[%clk 0:00:32]} 40. a4 {[%clk 0:00:09]}  c4 {[%clk 0:00:30]} 41. Kf3 {[%clk 0:00:10]}  Kg6 {[%clk 0:00:22]} 42. Ke4 {[%clk 0:00:10]}  d3 {[%clk 0:00:23]} 43. cxd3 {[%clk 0:00:10]}  c3 {[%clk 0:00:23]} 44. Ke3 {[%clk 0:00:10]}  c2 {[%clk 0:00:21]} 45. Kd2 {[%clk 0:00:10]}  c1=Q+ {[%clk 0:00:22]} 46. Kxc1 {[%clk 0:00:09]}  Kh5 {[%clk 0:00:23]} 47. d4 {[%clk 0:00:09]}  Kxh4 {[%clk 0:00:24]} 48. g6 {[%clk 0:00:08]}  Kh3 {[%clk 0:00:25]} 49. g7 {[%clk 0:00:05]}  Kh2 {[%clk 0:00:26]} 50. g8=Q {[%clk 0:00:05]}  Kh1 {[%clk 0:00:27]} 51. d5 {[%clk 0:00:05]}  Kh2 {[%clk 0:00:27]} 52. d6 {[%clk 0:00:04]}  Kh1 {[%clk 0:00:28]} 53. d7 {[%clk 0:00:04]}  Kh2 {[%clk 0:00:29]} 54. d8=Q {[%clk 0:00:05]}  Kh1 {[%clk 0:00:30]} 55. Qh4# {[%clk 0:00:04]} 1-0

[Event "January 9 Early 2024"]
[Site "https://www.chess.com"]
[Date "2024.01.11"]
[Round "2"]
[White "Bharadia Yash"]
[Black "Vakhidov, Shahzod"]
[Result "0-1"]
[Board "262"]
[TimeControl "180+1"]
[WhiteFideId "45087822"]
[BlackFideId "14205270"]
[WhiteElo "2262"]
[BlackElo "2517"]
[WhiteTeam "IND"]
[BlackTeam "UZB"]
[WhiteClock "0:00:01"]
[BlackClock "0:00:04"]

1. d4 {[%clk 0:03:00]}  Nf6 {[%clk 0:02:58]} 2. Nf3 {[%clk 0:02:59]}  g6 {[%clk 0:02:57]} 3. b3 {[%clk 0:02:59]}  Bg7 {[%clk 0:02:57]} 4. Bb2 {[%clk 0:03:00]}  O-O {[%clk 0:02:57]} 5. e3 {[%clk 0:03:01]}  d6 {[%clk 0:02:52]} 6. Be2 {[%clk 0:02:59]}  Nbd7 {[%clk 0:02:50]} 7. c4 {[%clk 0:02:58]}  e5 {[%clk 0:02:50]} 8. dxe5 {[%clk 0:02:59]}  Ng4 {[%clk 0:02:50]} 9. O-O {[%clk 0:02:58]}  Ngxe5 {[%clk 0:02:46]} 10. Nc3 {[%clk 0:02:57]}  b6 {[%clk 0:02:39]} 11. Qc2 {[%clk 0:02:44]}  Bb7 {[%clk 0:02:37]} 12. Nd4 {[%clk 0:02:40]}  Qg5 {[%clk 0:02:33]} 13. Ne4 {[%clk 0:02:36]}  Qh4 {[%clk 0:02:29]} 14. Ng3 {[%clk 0:02:34]}  a6 {[%clk 0:02:22]} 15. h3 {[%clk 0:02:26]}  c5 {[%clk 0:02:14]} 16. Nf3 {[%clk 0:02:14]}  Nxf3+ {[%clk 0:02:04]} 17. gxf3 {[%clk 0:02:12]}  Bxb2 {[%clk 0:01:55]} 18. Qxb2 {[%clk 0:02:13]}  Qxh3 {[%clk 0:01:56]} 19. Rfd1 {[%clk 0:02:08]}  Ne5 {[%clk 0:01:55]} 20. e4 {[%clk 0:02:03]}  Rad8 {[%clk 0:01:47]} 21. Qd2 {[%clk 0:01:57]}  f5 {[%clk 0:01:33]} 22. Qg5 {[%clk 0:01:15]}  Kh8 {[%clk 0:00:37]} 23. f4 {[%clk 0:00:21]}  Nc6 {[%clk 0:00:16]} 24. Bf1 {[%clk 0:00:17]}  Qg4 {[%clk 0:00:15]} 25. Qxg4 {[%clk 0:00:16]}  fxg4 {[%clk 0:00:16]} 26. Be2 {[%clk 0:00:15]}  Rxf4 {[%clk 0:00:15]} 27. Rd2 {[%clk 0:00:09]}  Nd4 {[%clk 0:00:14]} 28. Rad1 {[%clk 0:00:10]}  Bxe4 {[%clk 0:00:14]} 29. Rxd4 {[%clk 0:00:10]}  cxd4 {[%clk 0:00:10]} 30. Rxd4 {[%clk 0:00:11]}  Re8 {[%clk 0:00:11]} 31. Bd3 {[%clk 0:00:08]}  Bxd3 {[%clk 0:00:04]} 32. Rxf4 {[%clk 0:00:08]}  Bb1 {[%clk 0:00:05]} 33. a3 {[%clk 0:00:04]}  h5 {[%clk 0:00:05]} 34. Rf6 {[%clk 0:00:01]}  h4 {[%clk 0:00:04]} 35. Nf1 {[%clk 0:00:01]}  Re1 {[%clk 0:00:03]} 36. Rxd6 {[%clk 0:00:01]}  Be4 {[%clk 0:00:03]} 37. Rd8+ {[%clk 0:00:01]}  Kg7 {[%clk 0:00:03]} 38. Re8 {[%clk 0:00:01]}  Kf7 {[%clk 0:00:04]} 39. Re5 {[%clk 0:00:01]}  Kf6 {[%clk 0:00:04]} 0-1

[Event "January 9 Early 2024"]
[Site "https://www.chess.com"]
[Date "2024.01.11"]
[Round "2"]
[White "Chernyavsky, Alexander"]
[Black "Bolivar Losada, Jeison"]
[Result "1-0"]
[Board "263"]
[TimeControl "180+1"]
[WhiteFideId "24131156"]
[BlackFideId "4404793"]
[WhiteElo "2489"]
[BlackElo "2220"]
[WhiteTeam "RUS"]
[BlackTeam "COL"]
[WhiteClock "0:00:02"]
[BlackClock "0:00:01"]

1. d4 {[%clk 0:02:59]}  Nf6 {[%clk 0:02:59]} 2. c4 {[%clk 0:03:00]}  g6 {[%clk 0:02:59]} 3. Nc3 {[%clk 0:03:00]}  d5 {[%clk 0:02:59]} 4. cxd5 {[%clk 0:02:55]}  Nxd5 {[%clk 0:03:00]} 5. e4 {[%clk 0:02:55]}  Nxc3 {[%clk 0:03:00]} 6. bxc3 {[%clk 0:02:56]}  Bg7 {[%clk 0:03:00]} 7. Be3 {[%clk 0:02:57]}  c5 {[%clk 0:03:00]} 8. Rc1 {[%clk 0:02:57]}  O-O {[%clk 0:03:00]} 9. Nf3 {[%clk 0:02:49]}  Qa5 {[%clk 0:02:57]} 10. Qd2 {[%clk 0:02:49]}  Rd8 {[%clk 0:02:48]} 11. d5 {[%clk 0:02:43]}  b5 {[%clk 0:02:06]} 12. Bxc5 {[%clk 0:02:35]}  Na6 {[%clk 0:02:01]} 13. Bxe7 {[%clk 0:02:27]}  Re8 {[%clk 0:01:53]} 14. d6 {[%clk 0:02:21]}  Nc5 {[%clk 0:01:49]} 15. Bd3 {[%clk 0:01:52]}  Bb7 {[%clk 0:01:16]} 16. O-O {[%clk 0:00:53]}  Bxe4 {[%clk 0:01:04]} 17. Bxe4 {[%clk 0:00:35]}  Nxe4 {[%clk 0:01:05]} 18. Qd3 {[%clk 0:00:22]}  Nxc3 {[%clk 0:00:47]} 19. Rfe1 {[%clk 0:00:23]}  Nxa2 {[%clk 0:00:28]} 20. Rc5 {[%clk 0:00:22]}  Nb4 {[%clk 0:00:11]} 21. Qxb5 {[%clk 0:00:16]}  Qxb5 {[%clk 0:00:10]} 22. Rxb5 {[%clk 0:00:17]}  Nc6 {[%clk 0:00:05]} 23. Rc5 {[%clk 0:00:05]}  Nxe7 {[%clk 0:00:05]} 24. dxe7 {[%clk 0:00:06]}  Bf6 {[%clk 0:00:03]} 25. Rc7 {[%clk 0:00:06]}  a5 {[%clk 0:00:03]} 26. Nd2 {[%clk 0:00:03]}  a4 {[%clk 0:00:03]} 27. Ne4 {[%clk 0:00:04]}  Bxe7 {[%clk 0:00:02]} 28. Nc3 {[%clk 0:00:01]}  Bf8 {[%clk 0:00:02]} 29. Rxe8 {[%clk 0:00:01]}  Rxe8 {[%clk 0:00:02]} 30. Kf1 {[%clk 0:00:02]}  Ra8 {[%clk 0:00:02]} 31. Ke2 {[%clk 0:00:01]}  a3 {[%clk 0:00:02]} 32. Na2 {[%clk 0:00:02]}  Rb8 {[%clk 0:00:02]} 33. Rc2 {[%clk 0:00:02]}  Rb2 {[%clk 0:00:02]} 34. Kd3 {[%clk 0:00:01]}  Rxc2 {[%clk 0:00:02]} 35. Kxc2 {[%clk 0:00:01]}  f5 {[%clk 0:00:02]} 36. Kb3 {[%clk 0:00:02]}  Kf7 {[%clk 0:00:03]} 37. Nc3 {[%clk 0:00:01]}  Ke6 {[%clk 0:00:03]} 38. f4 {[%clk 0:00:02]}  h6 {[%clk 0:00:02]} 39. g3 {[%clk 0:00:02]}  Bd6 {[%clk 0:00:02]} 40. Ne2 {[%clk 0:00:02]}  Kd5 {[%clk 0:00:02]} 41. Nc3+ {[%clk 0:00:02]}  Kd4 {[%clk 0:00:02]} 42. Nb5+ {[%clk 0:00:03]}  Kd5 {[%clk 0:00:02]} 43. Nc3+ {[%clk 0:00:02]}  Kc5 {[%clk 0:00:01]} 44. Kxa3 {[%clk 0:00:01]}  Kd4+ {[%clk 0:00:01]} 45. Kb2 {[%clk 0:00:02]} 1-0

[Event "January 9 Early 2024"]
[Site "https://www.chess.com"]
[Date "2024.01.11"]
[Round "2"]
[White "Olenik Campa, Rudi"]
[Black "Lysyj, Igor"]
[Result "1/2-1/2"]
[Board "268"]
[TimeControl "180+1"]
[WhiteFideId "14633264"]
[BlackFideId "4150120"]
[WhiteElo "2578"]
[BlackElo "2855"]
[WhiteTeam "SLO"]
[BlackTeam "FID"]
[WhiteClock "0:00:14"]
[BlackClock "0:00:04"]

1. e4 {[%clk 0:03:00]}  e5 {[%clk 0:02:59]} 2. Nf3 {[%clk 0:03:00]}  Nc6 {[%clk 0:02:59]} 3. Bb5 {[%clk 0:03:00]}  a6 {[%clk 0:02:59]} 4. Ba4 {[%clk 0:03:00]}  Nf6 {[%clk 0:02:58]} 5. O-O {[%clk 0:03:00]}  Nxe4 {[%clk 0:02:58]} 6. d4 {[%clk 0:02:56]}  b5 {[%clk 0:02:58]} 7. Bb3 {[%clk 0:02:56]}  d5 {[%clk 0:02:58]} 8. Nxe5 {[%clk 0:02:56]}  Nxe5 {[%clk 0:02:57]} 9. dxe5 {[%clk 0:02:57]}  c6 {[%clk 0:02:57]} 10. c3 {[%clk 0:02:36]}  Bf5 {[%clk 0:02:54]} 11. Nd2 {[%clk 0:02:34]}  Nxd2 {[%clk 0:02:53]} 12. Bxd2 {[%clk 0:02:33]}  Be7 {[%clk 0:02:53]} 13. a4 {[%clk 0:02:16]}  O-O {[%clk 0:02:52]} 14. Qf3 {[%clk 0:02:12]}  Qd7 {[%clk 0:02:48]} 15. h3 {[%clk 0:02:12]}  Be4 {[%clk 0:02:34]} 16. Qg3 {[%clk 0:02:06]}  Qf5 {[%clk 0:02:32]} 17. Bh6 {[%clk 0:01:43]}  Qg6 {[%clk 0:02:29]} 18. Qxg6 {[%clk 0:01:43]}  hxg6 {[%clk 0:02:20]} 19. Be3 {[%clk 0:01:42]}  Rfb8 {[%clk 0:02:17]} 20. axb5 {[%clk 0:01:35]}  axb5 {[%clk 0:02:16]} 21. Rfd1 {[%clk 0:01:31]}  g5 {[%clk 0:02:08]} 22. f3 {[%clk 0:01:29]}  Bf5 {[%clk 0:02:04]} 23. Kf2 {[%clk 0:01:28]}  f6 {[%clk 0:02:00]} 24. f4 {[%clk 0:01:24]}  fxe5 {[%clk 0:01:45]} 25. fxe5 {[%clk 0:01:21]}  Kh7 {[%clk 0:01:32]} 26. Kg1 {[%clk 0:00:47]}  g6 {[%clk 0:01:28]} 27. Bd4 {[%clk 0:00:46]}  g4 {[%clk 0:01:17]} 28. hxg4 {[%clk 0:00:41]}  Bxg4 {[%clk 0:01:17]} 29. Rf1 {[%clk 0:00:41]}  Bf5 {[%clk 0:01:15]} 30. Rxa8 {[%clk 0:00:32]}  Rxa8 {[%clk 0:01:14]} 31. g4 {[%clk 0:00:29]}  Be6 {[%clk 0:01:13]} 32. Kg2 {[%clk 0:00:29]}  Kg7 {[%clk 0:01:08]} 33. Kg3 {[%clk 0:00:29]}  c5 {[%clk 0:01:00]} 34. Be3 {[%clk 0:00:26]}  c4 {[%clk 0:00:49]} 35. Bc2 {[%clk 0:00:26]}  Ra2 {[%clk 0:00:48]} 36. Bc1 {[%clk 0:00:26]}  Ra8 {[%clk 0:00:33]} 37. Be3 {[%clk 0:00:24]}  Ra2 {[%clk 0:00:15]} 38. Bc1 {[%clk 0:00:24]}  Ra6 {[%clk 0:00:11]} 39. Rh1 {[%clk 0:00:23]}  Ra2 {[%clk 0:00:09]} 40. Rh6 {[%clk 0:00:18]}  Bf7 {[%clk 0:00:08]} 41. Rh1 {[%clk 0:00:18]}  Ra6 {[%clk 0:00:06]} 42. Be3 {[%clk 0:00:17]}  Re6 {[%clk 0:00:05]} 43. Bd4 {[%clk 0:00:18]}  Kg8 {[%clk 0:00:05]} 44. Bf5 {[%clk 0:00:16]}  gxf5 {[%clk 0:00:05]} 45. gxf5 {[%clk 0:00:17]}  Rc6 {[%clk 0:00:03]} 46. e6 {[%clk 0:00:16]}  Bxe6 {[%clk 0:00:03]} 47. Rh8+ {[%clk 0:00:14]}  Kf7 {[%clk 0:00:03]} 48. fxe6+ {[%clk 0:00:15]}  Rxe6 {[%clk 0:00:03]} 49. Rh7+ {[%clk 0:00:15]}  Ke8 {[%clk 0:00:03]} 50. Rh8+ {[%clk 0:00:15]}  Kd7 {[%clk 0:00:03]} 51. Rb8 {[%clk 0:00:15]}  Kc7 {[%clk 0:00:02]} 52. Rxb5 {[%clk 0:00:13]}  Bd6+ {[%clk 0:00:03]} 53. Kf3 {[%clk 0:00:13]}  Kc6 {[%clk 0:00:03]} 54. Rb6+ {[%clk 0:00:13]}  Kd7 {[%clk 0:00:04]} 55. Rb5 {[%clk 0:00:13]}  Kc6 {[%clk 0:00:03]} 56. Rb6+ {[%clk 0:00:13]}  Kd7 {[%clk 0:00:04]} 57. Rb5 {[%clk 0:00:14]}  Kc6 {[%clk 0:00:04]} 1/2-1/2

[Event "January 9 Early 2024"]
[Site "https://www.chess.com"]
[Date "2024.01.11"]
[Round "2"]
[White "Rogov, Matfey"]
[Black "Starozhilov, Leonid"]
[Result "1-0"]
[Board "269"]
[TimeControl "180+1"]
[WhiteFideId "44191308"]
[BlackFideId "14106752"]
[WhiteElo "2551"]
[BlackElo "2766"]
[WhiteTeam "RUS"]
[BlackTeam "UKR"]
[WhiteClock "0:00:06"]
[BlackClock "0:00:07"]

1. e4 {[%clk 0:03:00]}  c5 {[%clk 0:02:56]} 2. Nc3 {[%clk 0:03:00]}  a6 {[%clk 0:02:55]} 3. Nf3 {[%clk 0:02:58]}  b5 {[%clk 0:02:54]} 4. d4 {[%clk 0:02:58]}  cxd4 {[%clk 0:02:53]} 5. Nxd4 {[%clk 0:02:58]}  Bb7 {[%clk 0:02:52]} 6. Bd3 {[%clk 0:02:54]}  e6 {[%clk 0:02:51]} 7. O-O {[%clk 0:02:52]}  Nc6 {[%clk 0:02:50]} 8. Be3 {[%clk 0:02:39]}  Nge7 {[%clk 0:02:42]} 9. Re1 {[%clk 0:02:37]}  Nxd4 {[%clk 0:02:40]} 10. Bxd4 {[%clk 0:02:36]}  Nc6 {[%clk 0:02:36]} 11. Be3 {[%clk 0:02:24]}  Be7 {[%clk 0:02:35]} 12. Qg4 {[%clk 0:02:21]}  O-O {[%clk 0:02:30]} 13. f4 {[%clk 0:02:18]}  g6 {[%clk 0:02:04]} 14. e5 {[%clk 0:02:06]}  Nb4 {[%clk 0:01:59]} 15. Rad1 {[%clk 0:01:36]}  Nxd3 {[%clk 0:01:33]} 16. Rxd3 {[%clk 0:01:37]}  Qc7 {[%clk 0:01:33]} 17. Bf2 {[%clk 0:01:15]}  b4 {[%clk 0:01:17]} 18. Ne2 {[%clk 0:00:50]}  Rad8 {[%clk 0:00:56]} 19. c3 {[%clk 0:00:43]}  d6 {[%clk 0:00:53]} 20. exd6 {[%clk 0:00:32]}  Rxd6 {[%clk 0:00:51]} 21. Bd4 {[%clk 0:00:30]}  bxc3 {[%clk 0:00:44]} 22. bxc3 {[%clk 0:00:26]}  Qc6 {[%clk 0:00:43]} 23. Rf1 {[%clk 0:00:18]}  Rfd8 {[%clk 0:00:40]} 24. h4 {[%clk 0:00:16]}  Qe4 {[%clk 0:00:39]} 25. Re3 {[%clk 0:00:13]}  Qf5 {[%clk 0:00:38]} 26. Qxf5 {[%clk 0:00:14]}  gxf5 {[%clk 0:00:38]} 27. Ng3 {[%clk 0:00:14]}  f6 {[%clk 0:00:28]} 28. Nh5 {[%clk 0:00:14]}  Kf7 {[%clk 0:00:28]} 29. Rg3 {[%clk 0:00:15]}  Rg8 {[%clk 0:00:17]} 30. Rxg8 {[%clk 0:00:14]}  Kxg8 {[%clk 0:00:18]} 31. Rb1 {[%clk 0:00:12]}  Bd5 {[%clk 0:00:11]} 32. Bxf6 {[%clk 0:00:09]}  Bf8 {[%clk 0:00:09]} 33. Rb8 {[%clk 0:00:08]}  Kf7 {[%clk 0:00:08]} 34. Be5 {[%clk 0:00:07]}  Rd7 {[%clk 0:00:05]} 35. a3 {[%clk 0:00:05]}  Bc6 {[%clk 0:00:05]} 36. Rb6 {[%clk 0:00:04]}  Bb7 {[%clk 0:00:04]} 37. Nf6 {[%clk 0:00:04]}  Rd1+ {[%clk 0:00:04]} 38. Kh2 {[%clk 0:00:04]}  Bd5 {[%clk 0:00:04]} 39. Nxd5 {[%clk 0:00:04]}  Rxd5 {[%clk 0:00:05]} 40. Rxa6 {[%clk 0:00:05]}  Rd3 {[%clk 0:00:04]} 41. Ra7+ {[%clk 0:00:05]}  Kg6 {[%clk 0:00:04]} 42. h5+ {[%clk 0:00:06]}  Kxh5 {[%clk 0:00:04]} 43. Rf7 {[%clk 0:00:05]}  Kg6 {[%clk 0:00:05]} 44. Rxf8 {[%clk 0:00:05]}  Rd2 {[%clk 0:00:04]} 45. Rf6+ {[%clk 0:00:05]}  Kh5 {[%clk 0:00:04]} 46. Rxe6 {[%clk 0:00:06]}  Kg4 {[%clk 0:00:05]} 47. Re8 {[%clk 0:00:05]}  Ra2 {[%clk 0:00:06]} 48. Rg8+ {[%clk 0:00:05]}  Kh4 {[%clk 0:00:06]} 49. Bf6+ {[%clk 0:00:05]}  Kh5 {[%clk 0:00:06]} 50. Rg5+ {[%clk 0:00:06]}  Kh6 {[%clk 0:00:07]} 51. Bg7# {[%clk 0:00:06]} 1-0